[Event "Fagernes Chess Open 2025"]
[Site "Fagernes"]
[Date "2025.04.15"]
[Round "3.1"]
[White "Andersen, Guttorm"]
[Black "Abrahamsson, Roaul"]
[Result "1-0"]
[Annotator "NA RC"]
[ECO "A45"]
[WhiteElo "1842"]
[BlackElo "1920"]
[PlyCount "105"]
[EventDate "2025.04.12"]
[EventCountry "NOR"]
[SourceTitle "playchess.com"]
[Source "ChessBase"]
[SourceQuality "1"]
[TimeControl "40/6000+30:2400+30"]

1. d4 {[%emt 0:00:30]} Nf6 {[%emt 0:00:10]} 2. c4 {[%emt 0:01:55]} e6 {[%emt 0:00:18]} 3. e3 {[%emt 0:00:35]} Bb4+ {[%emt 0:00:16]} 4. Nd2 {[%emt 0:03:25]} O-O {[%emt 0:02:47]} 5. Bd3 {[%emt 0:01:11]} d6 {[%emt 0:01:02]} 6. a3 {[%emt 0:06:36]} Bxd2+ {[%emt 0:01:03]} 7. Bxd2 {[%emt 0:00:03]} e5 {[%emt 0:01:30]} 8. Ne2 {[%emt 0:04:42]} e4 {[%emt 0:04:45]} 9. Bc2 {[%emt 0:03:52]} Bg4 {[%emt 0:10:10]} 10. O-O {[%emt 0:02:02]} Nbd7 {[%emt 0:04:04]} 11. f3 {[%emt 0:01:56]} exf3 {[%emt 0:05:58]} 12. gxf3 {[%emt 0:01:08]} Bh3 {[%emt 0:00:22]} 13. Rf2 {[%emt 0:02:50]} Nh5 {[%emt 0:05:28]} 14. Ng3 {[%emt 0:05:33]} Qh4 {[%emt 0:04:41]} 15. Nxh5 {[%emt 0:01:09]} Qxh5 {[%emt 0:00:08]} 16. Kh1 {[%emt 0:06:03]} Rae8 {[%emt 0:07:22]} 17. Qg1 {[%emt 0:01:44]} f5 {[%emt 0:07:34]} 18. Qg3 {[%emt 0:02:52]} f4 {[%emt 0:04:14]} 19. exf4 {[%emt 0:01:58]} Bf5 {[%emt 0:01:02]} 20. Rg1 {[%emt 0:03:47]} Rf7 {[%emt 0:04:12]} 21. Bb3 {[%emt 0:09:45]} c6 {[%emt 0:04:32]} 22. Qg5 {[%emt 0:03:28]} Qxg5 {[%emt 0:07:32]} 23. fxg5 {[%emt 0:07:48]} Rfe7 {[%emt 0:02:29]} 24. Bf4 {[%emt 0:08:19]} Nb6 {[%emt 0:10:14]} 25. c5+ {[%emt 0:04:30]} Nd5 {[%emt 0:00:08]} 26. cxd6 {[%emt 0:00:49]} Re2 {[%emt 0:00:28]} 27. Kg2 {[%emt 0:03:59]} Be6 {[%emt 0:01:08]} 28. Bxd5 {[%emt 0:06:44]} Rxf2+ {[%emt 0:05:09]} 29. Kxf2 {[%emt 0:00:11]} Bxd5 {[%emt 0:00:04]} 30. Be5 {[%emt 0:04:26]} Rf8 {[%emt 0:04:03]} 31. Rg3 {[%emt 0:00:30]} Be4 {[%emt 0:02:02]} 32. Ke2 {[%emt 0:02:37]} Bd5 {[%emt 0:01:30]} 33. h4 {[%emt 0:00:39]} g6 {[%emt 0:01:22]} 34. f4 {[%emt 0:00:44]} Kf7 {[%emt 0:01:36]} 35. Re3 {[%emt 0:01:12]} Be6 {[%emt 0:01:23]} 36. Bf6 {[%emt 0:00:30]} Re8 {[%emt 0:01:40]} 37. Kf2 {[%emt 0:01:39]} Bd5 {[%emt 0:01:53]} 38. Be5 {[%emt 0:00:43]} Ke6 {[%emt 0:01:16]} 39. Rh3 {[%emt 0:00:56]} Rf8 {[%emt 0:01:28]} 40. h5 {[%emt 0:00:24]} Rf7 {[%emt 0:01:07]} 41. Ke3 {[%emt 0:40:47]} Kf5 {[%emt 0:40:54]} 42. hxg6 {[%emt 0:00:28]} hxg6 {[%emt 0:00:02]} 43. Rh8 {[%emt 0:00:33]} Be6 {[%emt 0:00:00]} 44. Bf6 {[%emt 0:00:00]} Bd5 {[%emt 0:00:00]} 45. Rc8 {[%emt 0:00:00]} Rh7 {[%emt 0:00:00]} 46. Rh8 {[%emt 0:00:00]} Rxh8 {[%emt 0:00:00]} 47. Bxh8 {[%emt 0:00:00]} Ke6 {[%emt 0:00:00]} 48. Be5 {[%emt 0:00:00]} Kd7 {[%emt 0:00:00]} 49. f5 {[%emt 0:00:00]} gxf5 {[%emt 0:00:00]} 50. Kf4 {[%emt 0:00:00]} Be6 {[%emt 0:00:00]} 51. g6 {[%emt 0:00:00]} Ke8 {[%emt 0:00:00]} 52. Kg5 {[%emt 0:00:00]} Kf8 {[%emt 0:00:00]} 53. Kf6 {[%emt 0:00:00]} 1-0

[Event "Fagernes Chess Open 2025"]
[Site "Fagernes"]
[Date "2025.04.15"]
[Round "3.2"]
[White "Solbu, August"]
[Black "Stai, Sondre"]
[Result "0-1"]
[Annotator "NA RC"]
[ECO "C42"]
[WhiteElo "1887"]
[BlackElo "1786"]
[PlyCount "50"]
[EventDate "2025.04.12"]
[EventCountry "NOR"]
[SourceTitle "playchess.com"]
[Source "ChessBase"]
[SourceQuality "1"]
[TimeControl "40/6000+30:2400+30"]

1. e4 {[%emt 0:00:02]} e5 {[%emt 0:00:06]} 2. Nf3 {[%emt 0:00:07]} Nf6 {[%emt 0:00:06]} 3. Nxe5 {[%emt 0:00:07]} Nxe4 {[%emt 0:00:07]} 4. Qe2 {[%emt 0:00:41]} Qe7 {[%emt 0:00:42]} 5. Qxe4 {[%emt 0:00:16]} d6 {[%emt 0:00:11]} 6. d4 {[%emt 0:00:45]} dxe5 {[%emt 0:00:10]} 7. dxe5 {[%emt 0:04:00]} Nc6 {[%emt 0:02:01]} 8. f4 {[%emt 0:09:45]} f6 {[%emt 0:04:56]} 9. Nc3 {[%emt 0:05:13]} fxe5 {[%emt 0:07:19]} 10. Nd5 {[%emt 0:06:48]} Qf7 {[%emt 0:13:23]} 11. Bc4 {[%emt 0:06:08]} Bf5 {[%emt 0:08:48]} 12. Qe2 {[%emt 0:06:06]} Qd7 {[%emt 0:04:53]} 13. Be3 {[%emt 0:16:23]} Bg4 {[%emt 0:07:27]} 14. Qd2 {[%emt 0:07:55]} O-O-O {[%emt 0:01:24]} 15. h3 {[%emt 0:13:55]} exf4 {[%emt 0:12:53]} 16. Bxf4 {[%emt 0:03:52]} Qe8+ {[%emt 0:04:07]} 17. Kf1 {[%emt 0:17:04]} Be6 {[%emt 0:10:27]} 18. Re1 {[%emt 0:01:26]} Bxd5 {[%emt 0:05:47]} 19. Rxe8 {[%emt 0:00:54]} Bxc4+ {[%emt 0:00:12]} 20. Kg1 {[%emt 0:00:15]} Bc5+ {[%emt 0:07:39]} 21. Kh2 {[%emt 0:00:05]} Rhxe8 {[%emt 0:03:32]} 22. Qc3 {[%emt 0:00:10]} Re4 {[%emt 0:00:43]} 23. Bg5 {[%emt 0:00:26]} Bd6+ {[%emt 0:00:58]} 24. Kg1 {[%emt 0:00:05]} Rf8 {[%emt 0:00:48]} 25. g3 {[%emt 0:00:57]} Bc5+ {[%emt 0:01:15]} 0-1

[Event "Fagernes Chess Open 2025"]
[Site "Fagernes"]
[Date "2025.04.15"]
[Round "3.3"]
[White "Lysen, Terje Kevin G"]
[Black "Ali, Karim"]
[Result "0-1"]
[Annotator "NA RC"]
[ECO "C02"]
[WhiteElo "1667"]
[BlackElo "1876"]
[PlyCount "142"]
[EventDate "2025.04.12"]
[EventCountry "NOR"]
[SourceTitle "playchess.com"]
[Source "ChessBase"]
[SourceQuality "1"]
[TimeControl "40/6000+30:2400+30"]

1. e4 {[%emt 0:00:01]} e6 {[%emt 0:03:13]} 2. d4 {[%emt 0:00:08]} d5 {[%emt 0:00:08]} 3. e5 {[%emt 0:00:05]} c5 {[%emt 0:00:04]} 4. c3 {[%emt 0:00:05]} Qb6 {[%emt 0:00:04]} 5. Nf3 {[%emt 0:00:32]} Nc6 {[%emt 0:00:06]} 6. a3 {[%emt 0:00:06]} c4 {[%emt 0:00:09]} 7. Nbd2 {[%emt 0:00:43]} Na5 {[%emt 0:00:41]} 8. Rb1 {[%emt 0:01:55]} Bd7 {[%emt 0:00:05]} 9. g3 {[%emt 0:06:17]} Rc8 {[%emt 0:00:38]} 10. h4 {[%emt 0:02:29]} Ne7 {[%emt 0:03:25]} 11. Bh3 {[%emt 0:00:30]} h5 {[%emt 0:06:21]} 12. O-O {[%emt 0:02:14]} Nb3 {[%emt 0:06:10]} 13. Nxb3 {[%emt 0:08:22]} cxb3 {[%emt 0:00:06]} 14. Re1 {[%emt 0:00:57]} a5 {[%emt 0:00:40]} 15. Bf1 {[%emt 0:01:42]} a4 {[%emt 0:01:02]} 16. Bg5 {[%emt 0:03:30]} Bb5 {[%emt 0:08:04]} 17. Bxb5+ {[%emt 0:06:07]} Qxb5 {[%emt 0:00:14]} 18. Qe2 {[%emt 0:00:07]} Qd7 {[%emt 0:11:24]} 19. Rbc1 {[%emt 0:04:59]} b5 {[%emt 0:02:04]} 20. Red1 {[%emt 0:03:35]} Nc6 {[%emt 0:04:09]} 21. Nd2 {[%emt 0:20:41]} Na5 {[%emt 0:00:21]} 22. Rf1 {[%emt 0:00:31]} Nc4 {[%emt 0:05:43]} 23. Nxc4 {[%emt 0:00:17]} Rxc4 {[%emt 0:00:43]} 24. Be3 {[%emt 0:03:00]} Be7 {[%emt 0:00:37]} 25. Qd2 {[%emt 0:09:13]} Kd8 {[%emt 0:08:16]} 26. Bg5 {[%emt 0:05:36]} Kc7 {[%emt 0:00:23]} 27. Bxe7 {[%emt 0:00:37]} Qxe7 {[%emt 0:00:06]} 28. Qf4 {[%emt 0:02:10]} Kb6 {[%emt 0:01:42]} 29. Rfd1 {[%emt 0:01:50]} Rcc8 {[%emt 0:03:09]} 30. Rd3 {[%emt 0:05:17]} Rcg8 {[%emt 0:00:58]} 31. Kf1 {[%emt 0:07:01]} Rh6 {[%emt 0:14:25]} 32. Rf3 {[%emt 0:03:12]} f6 {[%emt 0:00:20]} 33. Ke2 {[%emt 0:02:40]} f5 {[%emt 0:02:52]} 34. Rh1 {[%emt 0:00:44]} Rh7 {[%emt 0:09:53]} 35. Qg5 {[%emt 0:01:14]} Qf7 {[%emt 0:01:09]} 36. Rf4 {[%emt 0:01:33]} Rgh8 {[%emt 0:00:55]} 37. Rf3 {[%emt 0:00:47]} Rh6 {[%emt 0:00:12]} 38. Qf4 {[%emt 0:02:56]} Rg6 {[%emt 0:00:42]} 39. Qd2 {[%emt 0:01:03]} Rg4 {[%emt 0:02:44]} 40. Rf4 {[%emt 0:01:02]} Qe7 {[%emt 0:02:27]} 41. Qe3 {[%emt 0:42:43]} g5 {[%emt 0:49:38]} 42. Rxg4 {[%emt 0:00:29]} hxg4 {[%emt 0:00:12]} 43. h5 {[%emt 0:00:08]} Rf8 {[%emt 0:04:56]} 44. f4 {[%emt 0:02:14]} gxf3+ {[%emt 0:00:00]} 45. Qxf3 {[%emt 0:00:00]} f4 {[%emt 0:00:00]} 46. g4 {[%emt 0:00:00]} Qh7 {[%emt 0:00:00]} 47. Qd3 {[%emt 0:00:00]} Qe4+ {[%emt 0:00:00]} 48. Qxe4 {[%emt 0:00:00]} dxe4 {[%emt 0:00:00]} 49. h6 {[%emt 0:00:00]} Kc6 {[%emt 0:00:00]} 50. h7 {[%emt 0:00:00]} Rh8 {[%emt 0:00:00]} 51. Rh6 {[%emt 0:00:00]} Kd5 {[%emt 0:00:00]} 52. Rh1 {[%emt 0:00:00]} Kc6 {[%emt 0:00:00]} 53. Rh6 {[%emt 0:00:00]} Kd7 {[%emt 0:00:00]} 54. d5 {[%emt 0:00:00]} exd5 {[%emt 0:00:00]} 55. Ra6 {[%emt 0:00:00]} Ke7 {[%emt 0:00:00]} 56. e6 {[%emt 0:04:21]} Kf6 {[%emt 0:00:00]} 57. Kf2 {[%emt 0:00:00]} Ke7 {[%emt 0:00:00]} 58. Rb6 {[%emt 0:00:00]} Re8 {[%emt 0:00:00]} 59. Ke2 {[%emt 0:00:00]} Rf8 {[%emt 0:00:00]} 60. Kf2 {[%emt 0:00:00]} f3 {[%emt 0:00:00]} 61. Rxb5 {[%emt 0:00:00]} e3+ {[%emt 0:00:00]} 62. Kxe3 {[%emt 0:00:00]} f2 {[%emt 0:00:00]} 63. h8=Q {[%emt 0:00:00]} Rxh8 {[%emt 0:00:00]} 64. Kxf2 {[%emt 0:00:07]} Rh2+ {[%emt 0:00:00]} 65. Ke3 {[%emt 0:00:03]} Rxb2 {[%emt 0:00:10]} 66. Rb4 {[%emt 0:00:29]} Ra2 {[%emt 0:03:39]} 67. Rxa4 {[%emt 0:00:38]} b2 {[%emt 0:00:15]} 68. Rb4 {[%emt 0:00:04]} Rxa3 {[%emt 0:00:24]} 69. Kd4 {[%emt 0:01:37]} Ra4 {[%emt 0:00:54]} 70. Rxa4 {[%emt 0:00:23]} b1=Q {[%emt 0:00:12]} 71. Kxd5 {[%emt 0:00:30]} Qb5+ {[%emt 0:00:11]} 0-1

[Event "Fagernes Chess Open 2025"]
[Site "Fagernes"]
[Date "2025.04.15"]
[Round "3.4"]
[White "Arulmaran, Abishan"]
[Black "Kopperud, Vidar Aleksander"]
[Result "1/2-1/2"]
[Annotator "NA RC"]
[ECO "B90"]
[WhiteElo "1858"]
[BlackElo "1778"]
[PlyCount "56"]
[EventDate "2025.04.12"]
[EventCountry "NOR"]
[SourceTitle "playchess.com"]
[Source "ChessBase"]
[SourceQuality "1"]
[TimeControl "40/6000+30:2400+30"]

1. e4 {[%emt 0:00:26]} c5 {[%emt 0:00:10]} 2. Nf3 {[%emt 0:00:45]} d6 {[%emt 0:00:13]} 3. d4 {[%emt 0:00:52]} cxd4 {[%emt 0:00:11]} 4. Nxd4 {[%emt 0:00:22]} Nf6 {[%emt 0:00:14]} 5. Nc3 {[%emt 0:00:08]} a6 {[%emt 0:00:12]} 6. Rg1 {[%emt 0:01:07]} h5 {[%emt 0:05:35]} 7. Be3 {[%emt 0:01:01]} g6 {[%emt 0:03:48]} 8. h3 {[%emt 0:01:58]} Bg7 {[%emt 0:02:40]} 9. Qf3 {[%emt 0:03:45]} Nbd7 {[%emt 0:02:00]} 10. O-O-O {[%emt 0:07:29]} Qc7 {[%emt 0:05:05]} 11. Qg3 {[%emt 0:08:30]} h4 {[%emt 0:05:02]} 12. Qh2 {[%emt 0:01:48]} Nc5 {[%emt 0:06:40]} 13. Bd3 {[%emt 0:15:06]} b5 {[%emt 0:05:48]} 14. e5 {[%emt 0:20:44]} Nxd3+ {[%emt 0:03:16]} 15. Rxd3 {[%emt 0:01:21]} dxe5 {[%emt 0:00:49]} 16. Nf3 {[%emt 0:08:59]} Bf5 {[%emt 0:02:58]} 17. Rd2 {[%emt 0:00:04]} b4 {[%emt 0:04:33]} 18. Na4 {[%emt 0:01:45]} Ne4 {[%emt 0:07:20]} 19. Rd5 {[%emt 0:07:21]} Qc6 {[%emt 0:09:08]} 20. Nb6 {[%emt 0:01:38]} Rb8 {[%emt 0:08:43]} 21. Nxe5 {[%emt 0:09:19]} Qc7 {[%emt 0:01:35]} 22. Ng4 {[%emt 0:01:30]} Qxh2 {[%emt 0:05:12]} 23. Nxh2 {[%emt 0:00:08]} Bh6 {[%emt 0:04:12]} 24. Nc4 {[%emt 0:02:28]} Be6 {[%emt 0:03:09]} 25. Rd4 {[%emt 0:03:25]} Bxc4 {[%emt 0:04:18]} 26. Bxh6 {[%emt 0:01:51]} Rxh6 {[%emt 0:01:13]} 27. Ng4 {[%emt 0:02:21]} Rh5 {[%emt 0:01:06]} 28. Rxe4 {[%emt 0:00:18]} Be6 {[%emt 0:00:59]} 1/2-1/2

[Event "Fagernes Chess Open 2025"]
[Site "Fagernes"]
[Date "2025.04.15"]
[Round "3.5"]
[White "Hansen, Thobias Gotaas"]
[Black "Yilmaz, Kazim"]
[Result "1-0"]
[Annotator "NA RC"]
[ECO "C54"]
[WhiteElo "1805"]
[BlackElo "1818"]
[PlyCount "141"]
[EventDate "2025.04.12"]
[EventCountry "NOR"]
[SourceTitle "playchess.com"]
[Source "ChessBase"]
[SourceQuality "1"]
[TimeControl "40/6000+30:2400+30"]

1. e4 {[%emt 0:00:03]} e5 {[%emt 0:00:05]} 2. Nf3 {[%emt 0:00:07]} Nc6 {[%emt 0:00:05]} 3. Bc4 {[%emt 0:00:16]} Bc5 {[%emt 0:00:07]} 4. c3 {[%emt 0:00:14]} d6 {[%emt 0:00:07]} 5. d3 {[%emt 0:01:36]} Nf6 {[%emt 0:00:07]} 6. Bg5 {[%emt 0:00:22]} O-O {[%emt 0:00:10]} 7. b4 {[%emt 0:01:08]} Bb6 {[%emt 0:00:10]} 8. a4 {[%emt 0:00:08]} a6 {[%emt 0:00:07]} 9. O-O {[%emt 0:01:27]} Bg4 {[%emt 0:00:07]} 10. Nbd2 {[%emt 0:00:15]} Qe7 {[%emt 0:00:11]} 11. Re1 {[%emt 0:00:43]} Rad8 {[%emt 0:00:24]} 12. Nf1 {[%emt 0:01:08]} h6 {[%emt 0:00:23]} 13. Be3 {[%emt 0:01:46]} Bxe3 {[%emt 0:01:01]} 14. Nxe3 {[%emt 0:00:31]} Be6 {[%emt 0:00:17]} 15. Bd5 {[%emt 0:09:47]} Bxd5 {[%emt 0:00:39]} 16. exd5 {[%emt 0:00:52]} Na7 {[%emt 0:00:25]} 17. d4 {[%emt 0:07:37]} exd4 {[%emt 0:00:34]} 18. Nf5 {[%emt 0:05:15]} Qd7 {[%emt 0:00:20]} 19. N3xd4 {[%emt 0:01:31]} c5 {[%emt 0:01:02]} 20. Re7 {[%emt 0:17:29]} Qc8 {[%emt 0:00:22]} 21. Ne6 {[%emt 0:00:37]} fxe6 {[%emt 0:00:42]} 22. Rxg7+ {[%emt 0:01:02]} Kh8 {[%emt 0:00:12]} 23. Qd2 {[%emt 0:01:22]} Ng8 {[%emt 0:00:51]} 24. Rxg8+ {[%emt 0:01:06]} Kxg8 {[%emt 0:00:22]} 25. Ne7+ {[%emt 0:01:03]} Kf7 {[%emt 0:00:09]} 26. Nxc8 {[%emt 0:01:18]} Nxc8 {[%emt 0:00:09]} 27. dxe6+ {[%emt 0:03:38]} Kxe6 {[%emt 0:00:16]} 28. Qxh6+ {[%emt 0:01:18]} Kd7 {[%emt 0:00:29]} 29. Kf1 {[%emt 0:02:20]} cxb4 {[%emt 0:00:19]} 30. Qg7+ {[%emt 0:01:53]} Ne7 {[%emt 0:00:36]} 31. Re1 {[%emt 0:00:59]} Rfe8 {[%emt 0:00:37]} 32. Qg4+ {[%emt 0:01:55]} Kc7 {[%emt 0:00:13]} 33. cxb4 {[%emt 0:01:21]} Nc6 {[%emt 0:00:32]} 34. h4 {[%emt 0:02:50]} Rxe1+ {[%emt 0:00:14]} 35. Kxe1 {[%emt 0:00:16]} d5 {[%emt 0:00:30]} 36. h5 {[%emt 0:00:54]} d4 {[%emt 0:00:30]} 37. h6 {[%emt 0:01:35]} Nxb4 {[%emt 0:00:56]} 38. h7 {[%emt 0:00:54]} Nc6 {[%emt 0:00:24]} 39. Qg7+ {[%emt 0:01:37]} Kc8 {[%emt 0:00:25]} 40. h8=Q {[%emt 0:00:28]} Rxh8 {[%emt 0:00:06]} 41. Qxh8+ {[%emt 0:40:26]} Kc7 {[%emt 0:40:07]} 42. g4 {[%emt 0:00:53]} b5 {[%emt 0:00:06]} 43. axb5 {[%emt 0:00:53]} axb5 {[%emt 0:00:08]} 44. g5 {[%emt 0:00:33]} b4 {[%emt 0:00:08]} 45. Qg8 {[%emt 0:01:34]} Na5 {[%emt 0:00:34]} 46. Qd5 {[%emt 0:01:11]} Nc6 {[%emt 0:00:20]} 47. Qc4 {[%emt 0:00:29]} Kd6 {[%emt 0:00:14]} 48. g6 {[%emt 0:00:27]} Ne5 {[%emt 0:00:21]} 49. Qxd4+ {[%emt 0:00:44]} Ke6 {[%emt 0:00:08]} 50. Qxe5+ {[%emt 0:00:29]} Kxe5 {[%emt 0:00:07]} 51. g7 {[%emt 0:00:26]} b3 {[%emt 0:00:07]} 52. g8=Q {[%emt 0:00:20]} b2 {[%emt 0:00:07]} 53. Qh8+ {[%emt 0:00:31]} Kf4 {[%emt 0:00:14]} 54. Qxb2 {[%emt 0:00:29]} Kf3 {[%emt 0:00:15]} 55. Qc3+ {[%emt 0:00:33]} Kf4 {[%emt 0:00:08]} 56. Qg3+ {[%emt 0:00:30]} Kf5 {[%emt 0:00:08]} 57. Qh4 {[%emt 0:00:33]} Ke6 {[%emt 0:00:10]} 58. Qg5 {[%emt 0:00:31]} Kf7 {[%emt 0:00:09]} 59. Qh6 {[%emt 0:00:40]} Ke7 {[%emt 0:00:09]} 60. Ke2 {[%emt 0:00:46]} Kf7 {[%emt 0:00:11]} 61. Kf3 {[%emt 0:01:00]} Ke7 {[%emt 0:00:08]} 62. Qg6 {[%emt 0:00:30]} Kd7 {[%emt 0:00:07]} 63. Qf6 {[%emt 0:00:19]} Kc7 {[%emt 0:00:06]} 64. Qe6 {[%emt 0:00:12]} Kb7 {[%emt 0:00:08]} 65. Qd6 {[%emt 0:00:12]} Ka7 {[%emt 0:00:07]} 66. Qc6 {[%emt 0:00:16]} Kb8 {[%emt 0:00:07]} 67. Qd7 {[%emt 0:00:37]} Ka8 {[%emt 0:00:06]} 68. Ke4 {[%emt 0:00:13]} Kb8 {[%emt 0:00:07]} 69. Kd5 {[%emt 0:00:09]} Ka8 {[%emt 0:00:07]} 70. Kc6 {[%emt 0:00:10]} Kb8 {[%emt 0:00:07]} 71. Qb7# {[%emt 0:00:10]} 1-0

[Event "Fagernes Chess Open 2025"]
[Site "Fagernes"]
[Date "2025.04.15"]
[Round "3.6"]
[White "Gilsdottir, Sara"]
[Black "Engkvist, Tomas"]
[Result "0-1"]
[Annotator "NA RC"]
[ECO "D35"]
[WhiteElo "1738"]
[BlackElo "1969"]
[PlyCount "96"]
[EventDate "2025.04.12"]
[EventCountry "NOR"]
[SourceTitle "playchess.com"]
[Source "ChessBase"]
[SourceQuality "1"]
[TimeControl "40/6000+30:2400+30"]

1. d4 {[%emt 0:00:10]} d5 {[%emt 0:00:01]} 2. c4 {[%emt 0:00:20]} e6 {[%emt 0:00:03]} 3. Nc3 {[%emt 0:00:35]} Nf6 {[%emt 0:00:03]} 4. Nf3 {[%emt 0:01:46]} Be7 {[%emt 0:00:10]} 5. Bg5 {[%emt 0:05:52]} O-O {[%emt 0:00:22]} 6. cxd5 {[%emt 0:02:36]} exd5 {[%emt 0:00:06]} 7. g3 {[%emt 0:01:30]} c6 {[%emt 0:03:15]} 8. Bg2 {[%emt 0:01:24]} h6 {[%emt 0:00:45]} 9. Bd2 {[%emt 0:06:40]} Bf5 {[%emt 0:00:37]} 10. O-O {[%emt 0:00:48]} Nbd7 {[%emt 0:00:26]} 11. Re1 {[%emt 0:01:20]} Ne4 {[%emt 0:00:51]} 12. Be3 {[%emt 0:08:52]} Ndf6 {[%emt 0:02:06]} 13. Nd2 {[%emt 0:09:46]} Nxc3 {[%emt 0:01:26]} 14. bxc3 {[%emt 0:00:16]} Ng4 {[%emt 0:00:12]} 15. Bf4 {[%emt 0:06:01]} g5 {[%emt 0:04:23]} 16. e4 {[%emt 0:06:07]} Bd7 {[%emt 0:05:43]} 17. Be3 {[%emt 0:01:24]} dxe4 {[%emt 0:01:03]} 18. Bxe4 {[%emt 0:02:19]} f5 {[%emt 0:03:20]} 19. Bf3 {[%emt 0:03:13]} Nxe3 {[%emt 0:00:51]} 20. Rxe3 {[%emt 0:02:50]} g4 {[%emt 0:00:05]} 21. Bg2 {[%emt 0:02:38]} f4 {[%emt 0:17:21]} 22. Re4 {[%emt 0:06:53]} f3 {[%emt 0:05:00]} 23. Bf1 {[%emt 0:00:25]} Bf5 {[%emt 0:00:35]} 24. Qb3+ {[%emt 0:05:19]} Kg7 {[%emt 0:00:41]} 25. Ree1 {[%emt 0:03:14]} Qd7 {[%emt 0:01:58]} 26. Nc4 {[%emt 0:04:25]} Bf6 {[%emt 0:02:14]} 27. Ne5 {[%emt 0:01:47]} Qc7 {[%emt 0:01:07]} 28. Rad1 {[%emt 0:03:36]} b5 {[%emt 0:06:25]} 29. a4 {[%emt 0:05:24]} a6 {[%emt 0:00:15]} 30. Bd3 {[%emt 0:05:55]} Bxd3 {[%emt 0:08:13]} 31. Rxd3 {[%emt 0:00:47]} Qc8 {[%emt 0:00:56]} 32. Re4 {[%emt 0:00:48]} h5 {[%emt 0:02:16]} 33. d5 {[%emt 0:04:52]} Qf5 {[%emt 0:02:20]} 34. Rde3 {[%emt 0:01:36]} Rfe8 {[%emt 0:19:14]} 35. Rf4 {[%emt 0:01:21]} Qxe5 {[%emt 0:00:32]} 36. Rxe5 {[%emt 0:01:38]} Rxe5 {[%emt 0:00:06]} 37. Kf1 {[%emt 0:00:58]} Rae8 {[%emt 0:00:07]} 38. Qd1 {[%emt 0:01:06]} Rxd5 {[%emt 0:00:55]} 39. Qc1 {[%emt 0:02:13]} Rde5 {[%emt 0:02:15]} 40. axb5 {[%emt 0:01:07]} cxb5 {[%emt 0:02:02]} 41. c4 {[%emt 0:06:09]} b4 {[%emt 0:00:33]} 42. c5 {[%emt 0:00:28]} b3 {[%emt 0:00:39]} 43. Rb4 {[%emt 0:00:39]} Re1+ {[%emt 0:00:12]} 44. Qxe1 {[%emt 0:00:16]} Rxe1+ {[%emt 0:00:02]} 45. Kxe1 {[%emt 0:00:10]} Bc3+ {[%emt 0:00:01]} 46. Kd1 {[%emt 0:00:17]} Bxb4 {[%emt 0:00:10]} 47. c6 {[%emt 0:00:05]} Bd6 {[%emt 0:00:11]} 48. Kc1 {[%emt 0:00:15]} a5 {[%emt 0:00:09]} 0-1

[Event "Fagernes Chess Open 2025"]
[Site "Fagernes"]
[Date "2025.04.15"]
[Round "3.7"]
[White "Aroven, Mikael"]
[Black "Kuzmenko, Mykhailo"]
[Result "1-0"]
[Annotator "RC"]
[ECO "A13"]
[WhiteElo "2145"]
[BlackElo "1747"]
[PlyCount "83"]
[EventDate "2025.04.12"]
[EventCountry "NOR"]
[SourceTitle "playchess.com"]
[Source "ChessBase"]
[SourceQuality "1"]
[TimeControl "40/6000+30:2400+30"]

1. Nf3 {[%emt 0:00:04]} Nf6 {[%emt 0:00:12]} 2. c4 {[%emt 0:00:19]} e6 {[%emt 0:00:16]} 3. e3 {[%emt 0:03:03]} d5 {[%emt 0:00:29]} 4. b3 {[%emt 0:00:38]} c5 {[%emt 0:04:08]} 5. Bb2 {[%emt 0:00:19]} Be7 {[%emt 0:00:17]} 6. Be2 {[%emt 0:02:21]} O-O {[%emt 0:01:21]} 7. O-O {[%emt 0:00:18]} Nc6 {[%emt 0:00:16]} 8. a3 {[%emt 0:02:01]} d4 {[%emt 0:02:07]} 9. exd4 {[%emt 0:00:05]} Nxd4 {[%emt 0:01:55]} 10. Nxd4 {[%emt 0:00:12]} cxd4 {[%emt 0:00:16]} 11. d3 {[%emt 0:00:11]} e5 {[%emt 0:02:13]} 12. Bf3 {[%emt 0:00:40]} Qc7 {[%emt 0:02:43]} 13. Re1 {[%emt 0:01:46]} a5 {[%emt 0:02:06]} 14. Nd2 {[%emt 0:00:36]} Bd7 {[%emt 0:05:32]} 15. Bxd4 {[%emt 0:07:44]} exd4 {[%emt 0:08:31]} 16. Rxe7 {[%emt 0:00:09]} Rae8 {[%emt 0:02:26]} 17. Rxe8 {[%emt 0:01:15]} Rxe8 {[%emt 0:00:02]} 18. Ne4 {[%emt 0:04:36]} Nxe4 {[%emt 0:00:25]} 19. Bxe4 {[%emt 0:00:07]} Bc6 {[%emt 0:02:02]} 20. Bxc6 {[%emt 0:01:52]} bxc6 {[%emt 0:01:41]} 21. b4 {[%emt 0:00:48]} Qe5 {[%emt 0:02:41]} 22. Rb1 {[%emt 0:01:42]} h6 {[%emt 0:00:35]} 23. g3 {[%emt 0:00:20]} Rb8 {[%emt 0:01:35]} 24. Qf3 {[%emt 0:11:12]} Qd6 {[%emt 0:01:29]} 25. Qe4 {[%emt 0:02:35]} Qf6 {[%emt 0:07:42]} 26. Kg2 {[%emt 0:04:15]} Qd6 {[%emt 0:02:13]} 27. h3 {[%emt 0:02:05]} Qf6 {[%emt 0:01:03]} 28. b5 {[%emt 0:14:53]} cxb5 {[%emt 0:01:27]} 29. Rxb5 {[%emt 0:02:19]} Rxb5 {[%emt 0:03:35]} 30. cxb5 {[%emt 0:00:02]} a4 {[%emt 0:01:07]} 31. Qa8+ {[%emt 0:02:21]} Kh7 {[%emt 0:00:15]} 32. Qxa4 {[%emt 0:00:24]} g5 {[%emt 0:02:00]} 33. Qa8 {[%emt 0:01:59]} h5 {[%emt 0:00:51]} 34. Qc6 {[%emt 0:00:55]} Qd8 {[%emt 0:01:32]} 35. b6 {[%emt 0:00:43]} Kg7 {[%emt 0:00:42]} 36. b7 {[%emt 0:02:07]} g4 {[%emt 0:00:40]} 37. hxg4 {[%emt 0:02:04]} hxg4 {[%emt 0:00:55]} 38. Qe4 {[%emt 0:00:08]} Qd6 {[%emt 0:03:11]} 39. Qxg4+ {[%emt 0:00:37]} Kf8 {[%emt 0:00:03]} 40. Qc8+ {[%emt 0:00:46]} Kg7 {[%emt 0:00:46]} 41. b8=Q {[%emt 0:40:21]} Qd5+ {[%emt 0:40:28]} 42. Kg1 {[%emt 0:00:27]} 1-0